Cogmind - Beta 16 @@@ ROGUE MODE // 2025.12.08 @ 17:57:08 Player: BlobtheGreat Result: Destroyed by Piercing Trap Performance ------------- Evolutions (0) 0 Regions Visited (2) 400 Robots Destroyed (33) 165 Value Destroyed (612) 612 Prototype IDs (2) 40 Alien Tech Used (0) 0 Bonus (0) 0 TOTAL SCORE: 1217 Bonus ------- None Cogmind --------- Core Integrity 0/250 Matter 300/300 Energy 99/100 System Corruption 0% Temperature Cool (0) Movement Rolling (130) Ox2 Location -10/Subcaves Parts ------- > --- POWER (1) -------- (None) > --- PROPULSION (2) --- Light Treads Subdweller Monowheel > --- UTILITY (2) ------ High-capacity Storage Unit > --- WEAPON (2) ------- Subdweller Beam Cannon Slug Cannon > --- INVENTORY (20) --- Subdweller Power Source Aluminum Leg Aluminum Leg Subdweller Monowheel Disposable Heat Sink Huge Storage Unit Subdweller Optics Seismic Detector Scrap Shield Riot Gun Subdweller Laser Subdweller Laser Subdweller Beam Cannon Light Assault Rifle Light Assault Rifle Grenade Launcher Grenade Launcher Datajack Makeshift Hammer Peak State ------------ > --- POWER ------------ Ion Engine > --- PROPULSION ------- Light Treads Subdweller Monowheel > --- UTILITY ---------- High-capacity Storage Unit Seismic Detector > --- WEAPON ----------- Subdweller Beam Cannon Slug Cannon > --- INVENTORY -------- Subdweller Power Source Light Treads Light Treads Aluminum Leg Aluminum Leg Disposable Heat Sink Huge Storage Unit Subdweller Optics Seismic Detector Scrap Shield Riot Gun Subdweller Laser Subdweller Beam Cannon Light Assault Rifle Light Assault Rifle Grenade Launcher Grenade Launcher Datajack Makeshift Hammer [Rating: 15] Favorites ----------- Power Light Ion Engine Engine Light Ion Engine Propulsion Light Treads Treads Light Treads Wheel Subdweller Monowheel Utility High-capacity Storage Unit Device Seismic Detector Storage High-capacity Storage Unit Weapon Light Assault Rifle Energy Gun EM Pulse Gun Energy Cannon Subdweller Beam Cannon Ballistic Gun Light Assault Rifle Ballistic Cannon Slug Cannon Launcher Grenade Launcher Special Weapon Mining Laser Slashing Weapon Mining Claw Build | -11 -10 -10 ------- Run | Yrd Mat Sub Slots Evolved . | . . . Power . | . . . Propulsion . | . . . Utility . | . . . Weapon . | . . . Parts Attached 23 | 7 5 11 Power 2 | 1 . 1 Engine 2 | 1 . 1 Core . | . . . Reactor . | . . . Propulsion 4 | 2 . 2 Treads 3 | 2 . 1 Leg . | . . . Wheel 1 | . . 1 Hover . | . . . Flight . | . . . Utility 5 | 2 1 2 Device 3 | 1 . 2 Storage 2 | 1 1 . Processor . | . . . Hackware . | . . . Protection . | . . . Artifact . | . . . Weapon 12 | 2 4 6 Energy Gun 1 | 1 . . Energy Cannon 3 | . . 3 Ballistic Gun 3 | 1 2 . Ballistic Cannon 1 | . . 1 Launcher 2 | . 1 1 Special Weapon 1 | . . 1 Impact Weapon . | . . . Slashing Weapon 1 | . 1 . Piercing Weapon . | . . . Special Melee Weapon . | . . . Unidentified Prototypes . | . . . Parts Lost 7 | . 1 6 Power 2 | . . 2 Propulsion 2 | . . 2 Utility 1 | . . 1 Weapon 2 | . 1 1 Highest Loss Streak 4 | . 1 4 To Critical Strikes . | . . . Average Backups 15 | 5 10 19 Power 1 | . 1 1 Propulsion 4 | 3 4 3 Utility 3 | . 1 4 Weapon 6 | . 2 8 Tool/Special . | . . . Unused Backups 18 | . 1 17 Power 1 | . . 1 Propulsion 5 | . . 5 Utility 5 | . . 5 Weapon 6 | . 1 5 Tool/Special 1 | . . 1 Average Slot Usage (%) 96 | . 100 94 Engine 12 | . 14 11 Treads 26 | . 28 25 Wheel 1 | . . 2 Device 12 | . 14 11 Storage 14 | . 14 14 Energy Cannon 6 | . . 9 Ballistic Gun 14 | . 27 6 Ballistic Cannon 5 | . . 9 Slashing Weapon 1 | . . 1 Peak Build Rating 15 | 7 8 15 Average Rating 10 | 5 7 12 On Entrance 5 | . 7 8 Avg Prop Armor Cover (%) 13 | . . 13 Naked Turns . | . . . Heaviest Build 61 | 13 47 61 Greatest Support 40 | 40 40 40 Greatest Overweight (x) 3 | . 1 3 Average Overweight (x) 1 | . . 1 Largest Inventory Capacity 20 | 8 20 20 Average Capacity 18 | 7 18 20 Most Carried 20 | 7 14 20 Average Carried 15 | 5 10 19 Final Capacity 20 | 8 20 20 Final Carried 20 | 7 14 20 Class Distribution -------------------- 100% | Mutant Dominant Class ---------------- Mutant | -10/Materials Mutant | -10/Subcaves Resources | -11 -10 -10 ----------- Run | Yrd Mat Sub Matter Collected 1012 | 369 291 352 Remotely . | . . . Salvage Created 973 | 264 388 321 Parts 68 | 26 23 19 Haulers Intercepted 2 | . 2 . Recyclers Shooed 1 | . 1 . Parts Field Recycled . | . . . Retrieved Matter . | . . . Parts Self-Destructed 1 | . . 1 Prevented . | . . . Parts Restored . | . . . Kills | -11 -10 -10 ------- Run | Yrd Mat Sub Combat Hostiles Destroyed 18 | . 11 7 Guns 9 | . 8 1 Cannons 4 | . . 4 AOE 3 | . 3 . Classes Destroyed 9 | 3 5 1 Worker 2 | 2 . . Builder 1 | . 1 . Tunneler 8 | 8 . . Hauler 2 | . 2 . Recycler 1 | 1 . . Watcher 1 | . 1 . Swarmer 6 | . 6 . Grunt 5 | . 5 . Subdweller 7 | . . 7 Best Kill Streak 6 | 6 5 2 Combat Bots Only 3 | . 3 2 Max Kills in Single Turn 2 | 1 2 1 Gunslinging . | . . . Exploded 1 | . 1 . Melee . | . . . Uniques/NPCs Destroyed . | . . . Combat | -11 -10 -10 -------- Run | Yrd Mat Sub Hostile Shots Fired 105 | . 55 50 Missed 24 | . 12 12 Hits 81 | . 43 38 Projectile 81 | . 43 38 Critical Strikes 1 | . 1 . Damage Taken 1244 | . 467 777 Core 269 | . 103 166 Absorbed by Shields . | . . . Core Remaining (%) 100 | 100 . . Volleys Fired 146 | 33 55 58 Largest 2 | 2 2 2 Hottest 100 | 60 40 100 Shots Fired 202 | 36 105 61 Gun 143 | 36 99 8 Cannon 46 | . . 46 Launcher 12 | . 6 6 Special 1 | . . 1 Kinetic 146 | 33 99 14 Thermal 41 | . . 41 Explosive 12 | . 6 6 Electromagnetic 3 | 3 . . Robot Hit Streak 14 | 5 8 14 Robot Miss Streak 3 | 2 3 1 Penetration Max . | . . . Secondary Targets . | . . . Shots Hit Robots 126 | 27 60 39 Core Hits 45 | 11 26 8 Critical Kills 2 | . . 2 Critical Parts Destroyed . | . . . Critical Strikes 2 | . . 2 Meltdown 2 | . . 2 Melee Attacks 9 | . 2 7 Impact . | . . . Slashing 9 | . 2 7 Piercing . | . . . Sneak Attacks . | . . . Combat Hostiles . | . . . Follow-up Attacks . | . . . Damage Inflicted 2275 | 379 943 953 Guns 1058 | 345 666 47 Cannons 906 | . . 906 Explosions 300 | 34 266 . Melee . | . . . Ramming 11 | . 11 . Kinetic 1028 | 315 666 47 Thermal 940 | 34 . 906 Explosive 266 | . 266 . Electromagnetic 30 | 30 . . Impact . | . . . Slashing . | . . . Piercing . | . . . Highest Corruption 3 | . 3 3 Average Corruption 2 | . 2 2 Corruption Purged 3 | . . 3 Corruption Blocked . | . . . Effects 30 | . 19 11 Message Errors 6 | . 1 5 Matter Fused 12 | . 8 4 Heat Flow Errors 2 | . 2 . Energy Discharges 5 | . 4 1 Data Loss (minor) 1 | . 1 . Data Loss (major) 2 | . 1 1 Misfires 2 | . 2 . Overload Shots . | . . . Overflow Damage 10 | . 10 . Projectiles . | . . . Explosions 10 | . 10 . Melee . | . . . Knockbacks . | . . . Impact . | . . . Kinetic . | . . . Secondary . | . . . Self-Inflicted Damage 21 | . 21 . Shots 1 | . 1 . Rammed 3 | . 3 . Targets Rammed 3 | . 3 . Kicked . | . . . Crushed . | . . . Highest Temperature 226 | . 226 36 Average Temperature 76 | . 114 17 Received Heat Transfer 321 | . 177 144 Siege Activations . | . . . Martial Activations . | . . . Shielding Activations . | . . . Robots Disrupted . | . . . Combat Hostiles . | . . . Robots Corrupted . | . . . Combat Hostiles . | . . . Parts Fried . | . . . Impact Corruptions . | . . . Robots Melted 2 | . . 2 Combat Hostiles 2 | . . 2 Parts Melted 3 | . . 3 Heat Transferred 1271 | 50 . 1221 Parts Sabotaged . | . . . Parts Stolen . | . . . Parts Stripped . | . . . Power Chain Reactions 1 | 1 . . Alert | -11 -10 -10 ------- Run | Yrd Mat Sub Maximum Alert Level . | . . . Low Security (%) 100 | 100 100 . Level 1 . | . . . Level 2 . | . . . Level 3 . | . . . Level 4 . | . . . Level 5 . | . . . High Security . | . . . Max Security . | . . . Peak Influence 103 | 20 103 . Initial . | . . . Average 23 | 2 27 . Influence Increases 429 | 55 374 . Destroy 0b10 Robot/C 220 | . 220 . Destroy 0b10 Robot/NC 75 | 55 20 . Destroy Leader 56 | . 56 . Successful Hack 29 | . 29 . Destroy Structure 34 | . 34 . Lose Combat Pursuer 15 | . 15 . Influence Decreases 429 | 55 374 . Time Decay 419 | 55 364 . Lost Part 10 | . 10 . Squads Dispatched 2 | . 2 . Investigation 1 | . 1 . Extermination . | . . . Reinforcement 1 | . 1 . Assault . | . . . Garrison . | . . . Intercept . | . . . Searches Triggered . | . . . Construction Impeded . | . . . Haulers Reinforced . | . . . Active Scanning Responses . | . . . Cargo Convoy Interrupts . | . . . Stealth | -11 -10 -10 --------- Run | Yrd Mat Sub Distress Signals . | . . . Communications Jammed . | . . . Distress Signals . | . . . Times Spotted 33 | . 25 8 Peak Tracking Total 5 | . 5 2 Tactical Retreats 1 | . 1 . Traps | -11 -10 -10 ------- Run | Yrd Mat Sub Traps Triggered 3 | . 2 1 Indirectly . | . . . Trap Hack Attempts . | . . . Triggered . | . . . Disarmed . | . . . Reprogrammed . | . . . Reused . | . . . Traps Extracted . | . . . Installed . | . . . Triggered . | . . . Machines | -11 -10 -10 ---------- Run | Yrd Mat Sub Machines Disabled . | . . . Max in Single Turn . | . . . Machines Repaired . | . . . Machines Dismantled . | . . . Machines Sabotaged . | . . . Overloaded Fab Kills . | . . . Hacking | -11 -10 -10 --------- Run | Yrd Mat Sub Machines Accessed 8 | . 8 . Terminals 8 | . 8 . Fabricators . | . . . Repair Stations . | . . . Recycling Units . | . . . Scanalyzers . | . . . Garrison Access . | . . . Total Hacks 30 | . 30 . Successful 13 | . 13 . Failed 16 | . 16 . Catastrophic 1 | . 1 . Database Lockouts 1 | . 1 . Manual 17 | . 17 . Terminals 30 | . 30 . Fabricators . | . . . Repair Stations . | . . . Recycling Units . | . . . Scanalyzers . | . . . Garrison Access . | . . . Terminal Hacks 5 | . 5 . Robot Analysis 1 | . 1 . Prototype ID Bank 1 | . 1 . Branch Access Points 1 | . 1 . Transport Status 1 | . 1 . Zone Layout 1 | . 1 . Fabricator Hacks . | . . . Repair Station Hacks . | . . . Recycling Unit Hacks . | . . . Scanalyzer . | . . . Garrison Access Hacks . | . . . Unauthorized Hacks 8 | . 8 . Terminals 8 | . 8 . Botnet 2 | . 2 . Skim 6 | . 6 . Fabricators . | . . . Repair Stations . | . . . Recycling Units . | . . . Scanalyzers . | . . . Garrison Access . | . . . Data Cores Recovered . | . . . Used . | . . . Hacking Detections 8 | . 8 . Full Trace Events 1 | . 1 . Feedback Events 1 | . 1 . Corruption 1 | . 1 . Feedback Blocked . | . . . Robot Schematics Acquired . | . . . Robots Built . | . . . Authchips . | . . . Time . | . . . Total Robot Build Rating . | . . . Part Schematics Acquired . | . . . Parts Built . | . . . Authchips . | . . . Time . | . . . Total Part Build Rating . | . . . Part Studies Acquired . | . . . Parts Repaired . | . . . Time . | . . . Parts Recycled . | . . . Recycled Matter . | . . . Retrieved Matter . | . . . Retrieved Components . | . . . Parts Scanalyzed . | . . . Part Schematics Acquired . | . . . Parts Damaged . | . . . Bothacking | -11 -10 -10 ------------ Run | Yrd Mat Sub Used RIF Installer . | . . . Robots Hacked . | . . . Non-combat . | . . . Combat . | . . . Robot Hacks Applied . | . . . Relay Couplers Released . | . . . Fabnet Peak Effective % . | . . . Robots Rewired . | . . . Allies Hacked . | . . . Hacks Repelled . | . . . Allies | -11 -10 -10 -------- Run | Yrd Mat Sub Total Allies . | . . . Largest Group . | . . . Highest-Rated Group . | . . . Highest-Rated Ally . | . . . Total Orders . | . . . Ally Attacks . | . . . Total Damage . | . . . Kills . | . . . Allies Corrupted . | . . . Allies Melted . | . . . Intel | -11 -10 -10 ------- Run | Yrd Mat Sub Active Infowar (turns) 3852 | 60 1643 2149 Seismic 3852 | 60 1643 2149 Robot Analysis Total 1 | . 1 . Derelict Logs Recovered 1 | . . 1 Drone Launches . | . . . Drone Recoveries . | . . . Exploration | -11 -10 -10 ------------- Run | Yrd Mat Sub Turns Passed 4953 | 268 1643 3042 Spaces Moved 2065 | 118 636 1311 Core 6 | 6 . . Treads 1651 | 112 636 903 Legs . | . . . Wheels 408 | . . 408 Hover . | . . . Flight . | . . . Fastest Speed 50 | 50 160 130 Average Speed 209 | 154 228 205 Slowest Speed 240 | 160 240 240 Overloaded Moves . | . . . Propulsion Burnouts . | . . . Robots Hopped . | . . . Potential Cave-ins . | . . . Cave-ins Triggered . | . . . Exploration Rate (%) 60 | 7 98 76 Regions Visited 2 Branch Regions 1 Pre-discovered Areas 1 | . . 1 Known Exits Taken 1 | . 1 . Unknown Exits Taken 1 | 1 . . Scrap Searched 11 | . . 11 Spaces Dug 24 | . 14 10 Terrain Destroyed 66 | 2 32 32 Melee . | . . . Projectile 4 | . . 4 AOE 62 | 2 32 28 Terrain Rammed . | . . . Walls Destroyed . | . . . Machines Disabled . | . . . Actions | -11 -10 -10 --------- Run | Yrd Mat Sub Total 2468 | 164 726 1578 Wait 173 | . 10 163 Move 2063 | 117 635 1311 Hop . | . . . Pick Up 31 | 7 9 15 Fast Attach 10 | 7 1 2 Attach 6 | . 1 5 Detach 2 | . . 2 Swap 15 | . 7 8 Drop 10 | . 3 7 Fire 146 | 33 55 58 Melee 9 | . 2 7 Ram . | . . . Kick . | . . . Crush 3 | . 3 . Escape Stasis . | . . . Rewire . | . . . Trap . | . . . Miscellaneous . | . . . Route ------- -11/Scrapyard -10/Materials (discovered 6 exits: *Mat x3 / *Min x2 / *Sub) -10/Subcaves (discovered 1 exit: [*Mat]) History --------- Turn | Location | Event 3 | -11/Scrapyard | Discovered new exit (range 15) 269 | -11/Scrapyard | Entered Materials 308 | -10/Materials | Build established: Mutant 408 | -10/Materials | Central database locked down 516 | -10/Materials | Discovered new exit (range 9) 677 | -10/Materials | Discovered new exit (range 14) 892 | -10/Materials | Identified exit to Mines 947 | -10/Materials | Loaded intel: 15 trap records 990 | -10/Materials | Identified exit to Materials 990 | -10/Materials | Identified exit to Subcaves 1025 | -10/Materials | Loaded intel: 1 repair station location 1063 | -10/Materials | Learned Storage security intel 1069 | -10/Materials | Learned Storage emergency access door positions 1075 | -10/Materials | Learned Storage stockpile data 1114 | -10/Materials | Learned 4 Subcaves zone layouts 1912 | -10/Materials | Entered Subcaves 1913 | -10/Subcaves | Approached by a straggling Scientist 2053 | -10/Subcaves | Core integrity fell below 50% 2321 | -10/Subcaves | Shifting Twisted Machinery released Sub. Beam Cannon 2322 | -10/Subcaves | Shifting Twisted Machinery released Mak. System Restoration Module 3401 | -10/Subcaves | A swath of the cavern ceiling suddenly collapsed 3529 | -10/Subcaves | Discovered new exit (range 12) 3752 | -10/Subcaves | Core integrity fell below 20% 3833 | -10/Subcaves | Learned location of Zion (-7) 3876 | -10/Subcaves | A swath of the cavern ceiling suddenly collapsed 4455 | -10/Subcaves | Lost 4 parts (1p2n1u) 4618 | -10/Subcaves | Shifting Twisted Machinery released Sub. Optics 4623 | -10/Subcaves | Shifting Twisted Machinery released Sub. Optics 4954 | -10/Subcaves | Destroyed by Piercing Trap Last Messages --------------- 04462_ VN-GGN(u) tweaks Twisted Machinery. 04584_ RX-BX9(u) tweaks Twisted Machinery. Sub. Optics falls loose from the Twisted Machinery. 04721_ RX-BX9(u) tweaks Twisted Machinery. 04919_ Searching scrap... 04919_ Found Scrap Shield. 04919_ Found Sub. Machine Gun. 04919_ Found 48 Matter. 04920_ Searching scrap... 04920_ Found Sub. Power Source. 04920_ Found 43 Matter. 04922_ Subatomizers dissect the Sub. Power Source. 04936_ Searching scrap... 04936_ Found Sub. Monowheel. 04936_ Found 50 Matter. 04954_ Triggered Piercing Trap. 04954_ Spikes shoot up from the floor. 04954_ Critical hit (Impale). Map ----- +----------------------------------------------------+ | | | | | | | | | | | | | | | | | | | | | | | | | | | | | | | | | ?????????????????????????????????????????????????? | | ?????????????????????????????????????????????????? | | ?????????????????????????????????????????????????? | | ?????????????????????????????????????????????????? | | ?????????????????????????????????????????????????? | | ?????????????????????????????????????????????????? | | ????????????????????????####?????????????????????? | | ????????????###????????? #?????????????????????? | | ????????????#"#?????????#< #?????????????????????? | | ????????????#%####???####@<#?????????????????????? | | ????????????# =""#####"%% <#?????????????????????? | | ????????????## #!*[ #?????????????????????? | | ?????????????#""## ##?????????????????????? | | ?????????????####" ##<<<##??????????????????????? | | ??????????????### "#####???????????????????????? | | #????####???### < ##????????????????????????? | | ###### #?### #??????????????????? | | # # ### ## #??????????????????? | | ### ## #??????????????????? | | ! ### ## ?????????????????? | | ##?# ?????????????????? | | ##?## ?????????????????? | | ## ##?# # ??????????????????? | | ?# ### ## #### #???????????????????? | | ?# ## ##? ##???####???????????????????? | | ?# #?? ##???????????????????????????? | | ?# #?? #????????????????????????????? | | ?## ##? ????????????????????????????? | | ??# #? #???????????????????????????? | | #?# #?# #???????????????????????????? | | ??# ##? #???????????????????????????? | | ??# ### ?#???????????????????????????? | | ?## ##??????????????????????????????? | | # # #??????????????????????????????? | +----------------------------------------------------+ Best States ------------- Heat Dissipation 25 Energy Generation 10 Energy Capacity 250 Matter Stores 300 Matter Capacity 300 Sight Range 16 Terrain Scan Density 10 Evasion (%) 40 Recoil Reduction 2 Item Schematics ----------------- None Robot Schematics ------------------ None Fabricated ------------ Nothing Repaired ---------- Nothing Studied --------- None Alien Tech Used ----------------- None Achievements -------------- None Challenges ------------ None Game ------ Seed ControlSmartbombFocus Manual? 0 Play Time 00:23:34 Cumulative 210.3 hours Start 2025.12.08 @ 17:41:08 End 2025.12.08 @ 17:57:08 Sessions 1 Manual Loads 0 Difficulty Rogue Special Mode None Game No. 199 Rogue 199 Adventurer 0 Explorer 0 Win Type - Total 10 Types 7/0/2/0/0/0/0/0/0/1 Lore% 84 Gallery% 74 Achievement% 59 Wizard Run 0 Options --------- Layout 1 ASCII 0 Keyboard 1 Movement Arrows Keybinds 0 Fullscreen 1 Font 24/Smallcaps Map View 50x40 Zoom Use 0% Tactical HUD 1 Map Filters NONE Filters NONE Steam 1 RUN: a1bd7a83-0726-4aa3-abb8-eb65fab2362f